[Event "44th Chess Olympiad Women 2022"]
[Site "Chennai"]
[Date "2022.08.03"]
[Round "6.50"]
[White "Ben Said, Safa"]
[Black "Smith, Olivia"]
[Result "0-1"]
[WhiteElo "1564"]
[BlackElo "2038"]
[Annotator "NA RC"]
[PlyCount "142"]
[EventDate "2022.??.??"]
[TimeControl "60"]

1. e4 {[%emt 0:00:04]} e5 {[%emt 0:00:06]} 2. Nf3 {[%emt 0:00:06]} Nf6 {
[%emt 0:00:08]} 3. Nxe5 {[%emt 0:00:17]} d6 {[%emt 0:00:16]} 4. Nf3 {[%emt 0:
00:00]} Nxe4 {[%emt 0:00:11]} 5. Nc3 {[%emt 0:00:28]} Nxc3 {[%emt 0:00:06]} 6.
dxc3 {[%emt 0:00:05]} Be7 {[%emt 0:00:08]} 7. Be3 {[%emt 0:00:35]} Nc6 {
[%emt 0:05:18]} 8. Qd2 {[%emt 0:03:14]} Be6 {[%emt 0:00:17]} 9. Be2 {[%emt 0:
00:00]} Qd7 {[%emt 0:01:02]} 10. O-O-O {[%emt 0:01:28]} a6 {[%emt 0:00:27]} 11.
Kb1 {[%emt 0:07:04]} O-O-O {[%emt 0:03:22]} 12. Nd4 {[%emt 0:09:23]} Bf6 {
[%emt 0:02:12]} 13. Rhe1 {[%emt 0:17:49]} Kb8 {[%emt 0:04:43]} 14. f4 {[%emt 0:
00:00]} Rhe8 {[%emt 0:03:48]} 15. Bf3 {[%emt 0:03:30]} Nxd4 {[%emt 0:01:55]}
16. Bxd4 {[%emt 0:01:38]} Bxd4 {[%emt 0:01:40]} 17. Qxd4 {[%emt 0:02:25]} g6 {
[%emt 0:01:12]} 18. c4 {[%emt 0:10:48]} Bg4 {[%emt 0:04:47]} 19. Bxg4 {[%emt 0:
00:00]} Qxg4 {[%emt 0:00:06]} 20. g3 {[%emt 0:00:09]} Re2 {[%emt 0:02:51]} 21.
h3 {[%emt 0:06:58]} Qe6 {[%emt 0:00:49]} 22. Rxe2 {[%emt 0:02:06]} Qxe2 {
[%emt 0:00:06]} 23. Kc1 {[%emt 0:00:33]} Re8 {[%emt 0:00:41]} 24. c5 {[%emt 0:
00:00]} dxc5 {[%emt 0:01:10]} 25. Qxc5 {[%emt 0:00:16]} Qg2 {[%emt 0:03:36]}
26. Qd5 {[%emt 0:03:59]} Qxg3 {[%emt 0:00:55]} 27. Qxf7 {[%emt 0:02:51]} Qe3+ {
[%emt 0:00:22]} 28. Kb1 {[%emt 0:02:17]} Re7 {[%emt 0:04:10]} 29. Qf6 {[%emt 0:
00:00]} Rd7 {[%emt 0:04:11]} 30. Rh1 {[%emt 0:03:48]} Qf3 {[%emt 0:01:17]} 31.
Qf8+ {[%emt 0:01:00]} Ka7 {[%emt 0:00:18]} 32. Qc5+ {[%emt 0:00:19]} b6 {
[%emt 0:00:19]} 33. Qg1 {[%emt 0:00:31]} Qxf4 {[%emt 0:00:25]} 34. Qg4 {
[%emt 0:02:32]} Rd4 {[%emt 0:08:16]} 35. c3 {[%emt 0:00:53]} Qe4+ {[%emt 0:00:
00]} 36. Qxe4 {[%emt 0:00:28]} Rxe4 {[%emt 0:00:04]} 37. Kc2 {[%emt 0:00:26]}
Re2+ {[%emt 0:00:37]} 38. Kb3 {[%emt 0:00:38]} Kb7 {[%emt 0:00:15]} 39. h4 {
[%emt 0:00:18]} Re5 {[%emt 0:00:37]} 40. Kc4 {[%emt 0:00:47]} Rh5 {[%emt 0:00:
00]} 41. Kd4 {[%emt 0:04:54]} g5 {[%emt 0:00:14]} 42. Ke5 {[%emt 0:02:01]}
gxh4+ {[%emt 0:00:42]} 43. Kf4 {[%emt 0:00:13]} h3 {[%emt 0:01:39]} 44. Kg4 {
[%emt 0:01:03]} Rh6 {[%emt 0:00:12]} 45. Kg5 {[%emt 0:00:38]} Rg6+ {[%emt 0:00:
00]} 46. Kf4 {[%emt 0:00:04]} Rg2 {[%emt 0:00:13]} 47. Rxh3 {[%emt 0:01:10]}
Rxb2 {[%emt 0:00:06]} 48. Rxh7 {[%emt 0:00:28]} Rxa2 {[%emt 0:00:05]} 49. Ke4 {
[%emt 0:00:24]} Rd2 {[%emt 0:00:18]} 50. Ke3 {[%emt 0:01:28]} Rd8 {[%emt 0:00:
00]} 51. Rh6 {[%emt 0:00:35]} a5 {[%emt 0:00:10]} 52. c4 {[%emt 0:00:45]} a4 {
[%emt 0:00:55]} 53. Rg6 {[%emt 0:01:09]} a3 {[%emt 0:00:55]} 54. Rg1 {[%emt 0:
00:00]} a2 {[%emt 0:00:11]} 55. Ra1 {[%emt 0:00:06]} Ra8 {[%emt 0:00:03]} 56.
Kd3 {[%emt 0:00:16]} Kc6 {[%emt 0:00:48]} 57. Kc3 {[%emt 0:00:46]} Kc5 {
[%emt 0:00:22]} 58. Kb3 {[%emt 0:00:22]} Rh8 {[%emt 0:01:06]} 59. Rxa2 {
[%emt 0:02:24]} Rh3+ {[%emt 0:00:12]} 60. Ka4 {[%emt 0:00:15]} Rc3 {[%emt 0:00:
00]} 61. Rh2 {[%emt 0:01:27]} Rxc4+ {[%emt 0:00:29]} 62. Kb3 {[%emt 0:00:22]}
Kb5 {[%emt 0:00:38]} 63. Rh5+ {[%emt 0:00:15]} c5 {[%emt 0:00:14]} 64. Rg5 {
[%emt 0:00:27]} Rh4 {[%emt 0:00:12]} 65. Rg6 {[%emt 0:00:54]} Rh3+ {[%emt 0:00:
00]} 66. Kc2 {[%emt 0:00:35]} Ka5 {[%emt 0:00:25]} 67. Rg5 {[%emt 0:00:55]} Kb4
{[%emt 0:00:29]} 68. Rg8 {[%emt 0:02:16]} c4 {[%emt 0:00:16]} 69. Rg5 {[%emt 0:
00:00]} b5 {[%emt 0:00:25]} 70. Rg8 {[%emt 0:00:12]} Rh2+ {[%emt 0:00:29]} 71.
Kc1 {[%emt 0:00:20]} Kb3 {[%emt 0:00:18]} 0-1

[Event "44th Chess Olympiad Women 2022"]
[Site "Chennai"]
[Date "2022.08.03"]
[Round "6.50"]
[White "Chong, Kimberly"]
[Black "Meddeb, Chadha"]
[Result "*"]
[WhiteElo "1741"]
[BlackElo "1561"]
[Annotator "NA RC"]
[PlyCount "61"]
[EventDate "2022.??.??"]
[TimeControl "60"]

1. e4 {[%emt 0:00:04]} e6 {[%emt 0:00:13]} 2. Nf3 {[%emt 0:00:18]} d5 {[%emt 0:
00:00]} 3. e5 {[%emt 0:00:16]} c5 {[%emt 0:00:22]} 4. b4 {[%emt 0:00:12]} cxb4
{[%emt 0:09:36]} 5. a3 {[%emt 0:00:14]} Nc6 {[%emt 0:02:03]} 6. axb4 {[%emt 0:
00:00]} Bxb4 {[%emt 0:01:52]} 7. c3 {[%emt 0:00:12]} Ba5 {[%emt 0:09:39]} 8. d4
{[%emt 0:08:28]} Bd7 {[%emt 0:02:57]} 9. Bd3 {[%emt 0:01:59]} Nge7 {[%emt 0:00:
00]} 10. O-O {[%emt 0:15:24]} Ng6 {[%emt 0:23:15]} 11. Bg5 {[%emt 0:04:07]} Qc8
{[%emt 0:04:05]} 12. h4 {[%emt 0:01:13]} Bd8 {[%emt 0:01:10]} 13. h5 {[%emt 0:
00:00]} Nf8 {[%emt 0:06:22]} 14. Na3 {[%emt 0:02:25]} a6 {[%emt 0:03:29]} 15.
c4 {[%emt 0:23:17]} Nxd4 {[%emt 0:09:33]} 16. Bxd8 {[%emt 0:06:40]} Nxf3+ {
[%emt 0:00:03]} 17. Qxf3 {[%emt 0:00:14]} Qxd8 {[%emt 0:00:14]} 18. cxd5 {
[%emt 0:00:19]} exd5 {[%emt 0:01:12]} 19. Qxd5 {[%emt 0:09:37]} Bc6 {[%emt 0:
00:00]} 20. Qb3 {[%emt 0:04:22]} Qg5 {[%emt 0:08:55]} 21. f3 {[%emt 0:00:41]}
Ne6 {[%emt 0:06:02]} 22. Be4 {[%emt 0:08:39]} O-O {[%emt 0:03:46]} 23. Bxc6 {
[%emt 0:03:05]} bxc6 {[%emt 0:00:01]} 24. g4 {[%emt 0:01:45]} Qxe5 {[%emt 0:00:
00]} 25. Ra2 {[%emt 0:02:42]} Rfd8 {[%emt 0:01:22]} 26. Nc4 {[%emt 0:00:26]}
Qc5+ {[%emt 0:00:48]} 27. Kh2 {[%emt 0:00:41]} Rab8 {[%emt 0:00:39]} 28. Qc2 {
[%emt 0:00:30]} Nd4 {[%emt 0:00:29]} 29. Qc1 {[%emt 0:00:44]} Rb3 {[%emt 0:00:
00]} 30. Ra5 {[%emt 0:00:18]} Qe7 {[%emt 0:00:30]} 31. Kh3 {[%emt 0:00:45]} *

[Event "44th Chess Olympiad Women 2022"]
[Site "Chennai"]
[Date "2022.08.03"]
[Round "6.50"]
[White "Hwass Zeineb"]
[Black "Ray, Hiya"]
[Result "1-0"]
[WhiteElo "1386"]
[BlackElo "1586"]
[Annotator "NA RC"]
[PlyCount "89"]
[EventDate "2022.??.??"]
[TimeControl "60"]

1. d4 {[%emt 0:00:04]} d5 {[%emt 0:00:16]} 2. Bf4 {[%emt 0:00:12]} Nf6 {
[%emt 0:00:35]} 3. Nf3 {[%emt 0:00:19]} e6 {[%emt 0:00:38]} 4. e3 {[%emt 0:00:
00]} c5 {[%emt 0:00:37]} 5. c3 {[%emt 0:00:19]} Nc6 {[%emt 0:00:52]} 6. Nbd2 {
[%emt 0:00:31]} Bd6 {[%emt 0:00:48]} 7. Bg3 {[%emt 0:00:32]} O-O {[%emt 0:00:
00]} 8. Bd3 {[%emt 0:00:43]} Qe7 {[%emt 0:05:48]} 9. Qe2 {[%emt 0:04:30]} e5 {
[%emt 0:04:45]} 10. dxe5 {[%emt 0:06:53]} Nxe5 {[%emt 0:00:20]} 11. Nxe5 {
[%emt 0:04:22]} Bxe5 {[%emt 0:01:49]} 12. Bxe5 {[%emt 0:02:22]} Qxe5 {[%emt 0:
00:00]} 13. Nf3 {[%emt 0:05:35]} Qe7 {[%emt 0:03:09]} 14. h3 {[%emt 0:00:57]}
Bd7 {[%emt 0:05:59]} 15. O-O {[%emt 0:00:54]} a6 {[%emt 0:04:51]} 16. Rfe1 {
[%emt 0:06:13]} Rae8 {[%emt 0:02:29]} 17. Rab1 {[%emt 0:15:00]} Ne4 {[%emt 0:
00:00]} 18. Kh1 {[%emt 0:11:32]} b5 {[%emt 0:06:57]} 19. Rbd1 {[%emt 0:13:32]}
Kh8 {[%emt 0:06:28]} 20. Bxe4 {[%emt 0:04:30]} dxe4 {[%emt 0:02:33]} 21. Nd2 {
[%emt 0:00:48]} Bc6 {[%emt 0:06:28]} 22. Nb3 {[%emt 0:03:46]} f5 {[%emt 0:00:
00]} 23. Rd2 {[%emt 0:02:37]} f4 {[%emt 0:01:59]} 24. exf4 {[%emt 0:00:48]}
Rxf4 {[%emt 0:05:06]} 25. Qe3 {[%emt 0:00:14]} Rf5 {[%emt 0:02:19]} 26. Red1 {
[%emt 0:01:06]} Ref8 {[%emt 0:05:56]} 27. Rd6 {[%emt 0:04:20]} Be8 {[%emt 0:00:
00]} 28. R1d2 {[%emt 0:01:49]} Rxf2 {[%emt 0:09:02]} 29. Rxf2 {[%emt 0:00:17]}
Rxf2 {[%emt 0:00:08]} 30. Qxf2 {[%emt 0:00:04]} Qxd6 {[%emt 0:00:03]} 31. Qxc5
{[%emt 0:00:54]} Qf4 {[%emt 0:01:28]} 32. Qe7 {[%emt 0:02:44]} Qf1+ {[%emt 0:
00:00]} 33. Kh2 {[%emt 0:00:07]} Qf4+ {[%emt 0:00:18]} 34. Kg1 {[%emt 0:00:08]}
h6 {[%emt 0:05:11]} 35. Qxe8+ {[%emt 0:00:37]} Kh7 {[%emt 0:00:05]} 36. Qd7 {
[%emt 0:03:39]} Qe3+ {[%emt 0:01:50]} 37. Kh1 {[%emt 0:00:02]} Qf2 {[%emt 0:00:
00]} 38. Qd2 {[%emt 0:01:06]} Qg3 {[%emt 0:01:31]} 39. Qe2 {[%emt 0:01:04]} e3
{[%emt 0:01:10]} 40. Kg1 {[%emt 0:00:12]} Qf4 {[%emt 0:00:15]} 41. Nc5 {
[%emt 0:31:04]} Qe5 {[%emt 0:01:41]} 42. Nxa6 {[%emt 0:00:00]} Qe4 {[%emt 0:00:
00]} 43. Nb4 {[%emt 0:00:00]} Qb1+ {[%emt 0:00:24]} 44. Kh2 {[%emt 0:00:00]}
Qe4 {[%emt 0:00:18]} 45. Qc2 {[%emt 0:00:00]} 1-0

[Event "44th Chess Olympiad Women 2022"]
[Site "Chennai"]
[Date "2022.08.03"]
[Round "6.51"]
[White "Bantiwalu, Aster Melake"]
[Black "Vasquez Jaen, Lourdes Lorena"]
[Result "1-0"]
[WhiteElo "1425"]
[BlackElo "1653"]
[Annotator "NA RC"]
[PlyCount "103"]
[EventDate "2022.??.??"]
[TimeControl "60"]

1. e4 {[%emt 0:00:08]} c5 {[%emt 0:00:06]} 2. Nf3 {[%emt 0:00:21]} g6 {[%emt 0:
00:00]} 3. Bc4 {[%emt 0:00:50]} Bg7 {[%emt 0:00:12]} 4. c3 {[%emt 0:00:45]} e6
{[%emt 0:05:18]} 5. O-O {[%emt 0:00:42]} Ne7 {[%emt 0:02:12]} 6. d4 {[%emt 0:
00:00]} cxd4 {[%emt 0:00:45]} 7. Nxd4 {[%emt 0:00:56]} a6 {[%emt 0:00:47]} 8.
Bg5 {[%emt 0:01:01]} h6 {[%emt 0:01:26]} 9. Be3 {[%emt 0:00:24]} O-O {[%emt 0:
00:00]} 10. Nd2 {[%emt 0:00:46]} b5 {[%emt 0:06:12]} 11. Bb3 {[%emt 0:00:42]}
Bb7 {[%emt 0:00:27]} 12. Bc2 {[%emt 0:07:52]} Nbc6 {[%emt 0:00:18]} 13. N2f3 {
[%emt 0:05:27]} Rc8 {[%emt 0:12:43]} 14. Qd2 {[%emt 0:01:56]} Kh7 {[%emt 0:00:
00]} 15. Rac1 {[%emt 0:02:29]} Na5 {[%emt 0:12:51]} 16. b3 {[%emt 0:02:36]} e5
{[%emt 0:05:03]} 17. Ne2 {[%emt 0:02:07]} d5 {[%emt 0:00:17]} 18. Ng3 {[%emt 0:
00:00]} Qc7 {[%emt 0:09:31]} 19. exd5 {[%emt 0:07:00]} Nxd5 {[%emt 0:00:13]}
20. Ne2 {[%emt 0:02:04]} f5 {[%emt 0:01:17]} 21. Qe1 {[%emt 0:01:34]} f4 {
[%emt 0:05:09]} 22. Bd2 {[%emt 0:00:49]} Nc6 {[%emt 0:05:14]} 23. h3 {[%emt 0:
00:00]} Rce8 {[%emt 0:02:34]} 24. c4 {[%emt 0:02:07]} bxc4 {[%emt 0:02:05]} 25.
bxc4 {[%emt 0:00:06]} Nf6 {[%emt 0:01:17]} 26. Nh4 {[%emt 0:05:24]} Ne7 {
[%emt 0:02:21]} 27. Bb4 {[%emt 0:01:44]} Nfg8 {[%emt 0:05:35]} 28. f3 {[%emt 0:
00:00]} Rf7 {[%emt 0:03:54]} 29. Kh1 {[%emt 0:01:09]} Nf5 {[%emt 0:00:21]} 30.
Nxf5 {[%emt 0:00:52]} gxf5 {[%emt 0:00:01]} 31. Nxf4 {[%emt 0:01:44]} Nf6 {
[%emt 0:01:37]} 32. Bxf5+ {[%emt 0:00:24]} Kg8 {[%emt 0:00:29]} 33. Nd5 {
[%emt 0:03:26]} Nxd5 {[%emt 0:02:54]} 34. cxd5 {[%emt 0:00:08]} Qb6 {[%emt 0:
00:00]} 35. Be6 {[%emt 0:00:45]} Rxe6 {[%emt 0:00:01]} 36. dxe6 {[%emt 0:00:09]
} Qxe6 {[%emt 0:00:03]} 37. Qe2 {[%emt 0:01:06]} a5 {[%emt 0:07:05]} 38. Bxa5 {
[%emt 0:05:28]} Ba6 {[%emt 0:00:04]} 39. Qc2 {[%emt 0:01:14]} Bxf1 {[%emt 0:00:
00]} 40. Rxf1 {[%emt 0:00:02]} Ra7 {[%emt 0:01:43]} 41. Bd2 {[%emt 0:37:28]}
Rxa2 {[%emt 0:31:53]} 42. Qd3 {[%emt 0:01:08]} Ra8 {[%emt 0:00:00]} 43. Rb1 {
[%emt 0:00:00]} Kh8 {[%emt 0:00:00]} 44. Be3 {[%emt 0:00:00]} Qc6 {[%emt 0:00:
00]} 45. Rc1 {[%emt 0:00:00]} Qe6 {[%emt 0:00:00]} 46. Qe4 {[%emt 0:00:00]} Qe8
{[%emt 0:00:00]} 47. Rc7 {[%emt 0:00:00]} Ra4 {[%emt 0:00:00]} 48. Qc2 {
[%emt 0:00:00]} Ra1+ {[%emt 0:03:51]} 49. Kh2 {[%emt 0:00:00]} Ra2 {[%emt 0:00:
00]} 50. Qxa2 {[%emt 0:00:00]} e4 {[%emt 0:00:03]} 51. f4 {[%emt 0:00:00]} Qd8
{[%emt 0:00:57]} 52. Qf7 {[%emt 0:01:03]} 1-0

[Event "44th Chess Olympiad Women 2022"]
[Site "Chennai"]
[Date "2022.08.03"]
[Round "6.51"]
[White "Chung Hurtado, Yaleika"]
[Black "Haile, Lidet Abate"]
[Result "0-1"]
[WhiteElo "1696"]
[BlackElo "1624"]
[Annotator "NA RC"]
[PlyCount "139"]
[EventDate "2022.??.??"]
[TimeControl "60"]

1. d4 {[%emt 0:00:03]} d5 {[%emt 0:00:05]} 2. Nf3 {[%emt 0:00:06]} Nf6 {
[%emt 0:00:15]} 3. c4 {[%emt 0:00:08]} e6 {[%emt 0:00:27]} 4. g3 {[%emt 0:00:
00]} g6 {[%emt 0:00:36]} 5. Bg2 {[%emt 0:00:23]} Bg7 {[%emt 0:00:09]} 6. O-O {
[%emt 0:00:23]} O-O {[%emt 0:00:04]} 7. Qc2 {[%emt 0:00:26]} Nbd7 {[%emt 0:00:
00]} 8. b3 {[%emt 0:01:12]} a6 {[%emt 0:00:53]} 9. Bb2 {[%emt 0:00:13]} Re8 {
[%emt 0:02:31]} 10. Nbd2 {[%emt 0:01:45]} c6 {[%emt 0:01:46]} 11. Rfd1 {
[%emt 0:05:40]} Qe7 {[%emt 0:06:04]} 12. e4 {[%emt 0:01:54]} Rb8 {[%emt 0:00:
00]} 13. Re1 {[%emt 0:07:27]} dxe4 {[%emt 0:03:35]} 14. Nxe4 {[%emt 0:00:37]}
Nxe4 {[%emt 0:00:27]} 15. Qxe4 {[%emt 0:00:45]} Nf6 {[%emt 0:01:10]} 16. Qe2 {
[%emt 0:00:09]} Bd7 {[%emt 0:00:53]} 17. a4 {[%emt 0:04:27]} Qd6 {[%emt 0:00:
00]} 18. Ba3 {[%emt 0:03:56]} Qc7 {[%emt 0:00:42]} 19. Bc1 {[%emt 0:01:15]}
Rbd8 {[%emt 0:00:48]} 20. Bf4 {[%emt 0:03:48]} Qb6 {[%emt 0:01:51]} 21. Qc2 {
[%emt 0:00:14]} c5 {[%emt 0:07:29]} 22. a5 {[%emt 0:01:19]} Qc6 {[%emt 0:02:14]
} 23. Rad1 {[%emt 0:12:37]} cxd4 {[%emt 0:04:23]} 24. Nxd4 {[%emt 0:01:20]} Qc8
{[%emt 0:02:50]} 25. Bd6 {[%emt 0:06:54]} h6 {[%emt 0:12:13]} 26. Qe2 {[%emt 0:
00:00]} Nh7 {[%emt 0:08:51]} 27. c5 {[%emt 0:11:15]} Bxd4 {[%emt 0:05:14]} 28.
Rxd4 {[%emt 0:00:28]} Bc6 {[%emt 0:00:39]} 29. Rb4 {[%emt 0:05:29]} Bxg2 {
[%emt 0:01:32]} 30. Kxg2 {[%emt 0:00:07]} Qc6+ {[%emt 0:01:32]} 31. Qf3 {
[%emt 0:01:40]} Qxf3+ {[%emt 0:00:34]} 32. Kxf3 {[%emt 0:00:02]} Rd7 {[%emt 0:
00:00]} 33. h4 {[%emt 0:00:51]} Nf6 {[%emt 0:00:54]} 34. Rd4 {[%emt 0:05:12]}
Red8 {[%emt 0:00:45]} 35. Red1 {[%emt 0:01:38]} Ne8 {[%emt 0:03:59]} 36. Ke4 {
[%emt 0:03:11]} f6 {[%emt 0:01:32]} 37. b4 {[%emt 0:02:47]} Kf7 {[%emt 0:00:38]
} 38. R4d2 {[%emt 0:05:04]} e5 {[%emt 0:03:21]} 39. f4 {[%emt 0:00:01]} exf4 {
[%emt 0:00:19]} 40. Bxf4 {[%emt 0:00:18]} Re7+ {[%emt 0:01:29]} 41. Kf3 {
[%emt 0:30:27]} Rxd2 {[%emt 0:30:20]} 42. Rxd2 {[%emt 0:01:56]} g5 {[%emt 0:00:
00]} 43. hxg5 {[%emt 0:04:48]} hxg5 {[%emt 0:00:29]} 44. Bb8 {[%emt 0:02:20]}
Ng7 {[%emt 0:03:19]} 45. Rd6 {[%emt 0:00:00]} Nf5 {[%emt 0:00:00]} 46. Rb6 {
[%emt 0:00:00]} Nd4+ {[%emt 0:00:00]} 47. Kg2 {[%emt 0:00:00]} g4 {[%emt 0:00:
00]} 48. Kf1 {[%emt 0:00:00]} Kg6 {[%emt 0:00:00]} 49. Bf4 {[%emt 0:00:00]} Kf5
{[%emt 0:00:00]} 50. Rd6 {[%emt 0:00:00]} Nb5 {[%emt 0:00:00]} 51. Rb6 {
[%emt 0:00:00]} Nd4 {[%emt 0:00:00]} 52. Rd6 {[%emt 0:00:00]} Ne6 {[%emt 0:00:
00]} 53. c6 {[%emt 0:00:00]} Nxf4 {[%emt 0:00:00]} 54. gxf4 {[%emt 0:00:00]}
bxc6 {[%emt 0:00:00]} 55. Rxc6 {[%emt 0:00:00]} Re4 {[%emt 0:00:00]} 56. Rb6 {
[%emt 0:00:44]} Rxf4+ {[%emt 0:00:00]} 57. Kg2 {[%emt 0:00:05]} Rc4 {[%emt 0:
00:00]} 58. Rxa6 {[%emt 0:01:03]} Rxb4 {[%emt 0:00:00]} 59. Rc6 {[%emt 0:00:07]
} Ra4 {[%emt 0:00:00]} 60. a6 {[%emt 0:00:23]} Ra5 {[%emt 0:00:24]} 61. Kg3 {
[%emt 0:01:03]} Kg5 {[%emt 0:00:07]} 62. Rb6 {[%emt 0:02:18]} f5 {[%emt 0:00:
00]} 63. Rc6 {[%emt 0:00:10]} f4+ {[%emt 0:00:51]} 64. Kg2 {[%emt 0:00:12]}
Ra2+ {[%emt 0:00:16]} 65. Kg1 {[%emt 0:00:08]} Kh4 {[%emt 0:00:18]} 66. Kf1 {
[%emt 0:02:03]} Kg3 {[%emt 0:00:31]} 67. Rc3+ {[%emt 0:01:04]} f3 {[%emt 0:00:
00]} 68. Rc1 {[%emt 0:00:18]} Rxa6 {[%emt 0:00:08]} 69. Re1 {[%emt 0:00:26]}
Rh6 {[%emt 0:00:14]} 70. Ra1 {[%emt 0:01:40]} 0-1

[Event "44th Chess Olympiad Women 2022"]
[Site "Chennai"]
[Date "2022.08.03"]
[Round "6.51"]
[White "Mekonen, Selemawit Kidanemar"]
[Black "Castillo Beitia, Ashley Alexandra"]
[Result "0-1"]
[WhiteElo "1263"]
[BlackElo "1587"]
[Annotator "NA RC"]
[PlyCount "52"]
[EventDate "2022.??.??"]
[TimeControl "60"]

1. e4 {[%emt 0:00:01]} c5 {[%emt 0:00:30]} 2. Bc4 {[%emt 0:01:22]} d6 {[%emt 0:
00:00]} 3. Nf3 {[%emt 0:00:56]} Nf6 {[%emt 0:00:17]} 4. Nc3 {[%emt 0:02:15]} g6
{[%emt 0:02:03]} 5. h3 {[%emt 0:02:00]} Bg7 {[%emt 0:02:59]} 6. d3 {[%emt 0:00:
00]} O-O {[%emt 0:04:05]} 7. O-O {[%emt 0:00:35]} Nc6 {[%emt 0:04:17]} 8. a3 {
[%emt 0:03:23]} a6 {[%emt 0:08:23]} 9. a4 {[%emt 0:04:17]} e6 {[%emt 0:03:50]}
10. Nh2 {[%emt 0:00:42]} d5 {[%emt 0:01:41]} 11. exd5 {[%emt 0:03:32]} exd5 {
[%emt 0:02:25]} 12. Bb3 {[%emt 0:05:52]} Re8 {[%emt 0:05:11]} 13. Bg5 {[%emt 0:
00:00]} Ne7 {[%emt 0:09:44]} 14. Qc1 {[%emt 0:04:54]} Be6 {[%emt 0:06:03]} 15.
Ne2 {[%emt 0:08:20]} b5 {[%emt 0:05:49]} 16. axb5 {[%emt 0:06:23]} axb5 {
[%emt 0:01:14]} 17. Rxa8 {[%emt 0:01:56]} Qxa8 {[%emt 0:00:07]} 18. c4 {
[%emt 0:02:40]} dxc4 {[%emt 0:02:26]} 19. dxc4 {[%emt 0:00:50]} Ne4 {[%emt 0:
00:00]} 20. Bxe7 {[%emt 0:03:52]} Rxe7 {[%emt 0:00:06]} 21. Qc2 {[%emt 0:09:35]
} bxc4 {[%emt 0:01:51]} 22. Bxc4 {[%emt 0:00:41]} Bxc4 {[%emt 0:00:14]} 23.
Qxc4 {[%emt 0:00:53]} Nd2 {[%emt 0:00:21]} 24. Qxc5 {[%emt 0:00:30]} Re5 {
[%emt 0:00:08]} 25. Qc2 {[%emt 0:04:33]} Rxe2 {[%emt 0:02:29]} 26. Rd1 {
[%emt 0:00:39]} Nf3+ {[%emt 0:00:12]} 0-1

[Event "44th Chess Olympiad Women 2022"]
[Site "Chennai"]
[Date "2022.08.03"]
[Round "6.51"]
[White "Rondon Chacon, Yolys Desiree"]
[Black "Abera, Mekdes Demssie"]
[Result "1-0"]
[WhiteElo "1688"]
[BlackElo "1342"]
[Annotator "NA RC"]
[PlyCount "117"]
[EventDate "2022.??.??"]
[TimeControl "60"]

1. d4 {[%emt 0:00:01]} d5 {[%emt 0:00:11]} 2. Nf3 {[%emt 0:00:07]} Nc6 {
[%emt 0:00:12]} 3. g3 {[%emt 0:00:12]} Nf6 {[%emt 0:00:08]} 4. Bg2 {[%emt 0:00:
00]} e6 {[%emt 0:00:11]} 5. O-O {[%emt 0:00:19]} Be7 {[%emt 0:00:04]} 6. c4 {
[%emt 0:00:30]} O-O {[%emt 0:00:50]} 7. Nc3 {[%emt 0:01:05]} dxc4 {[%emt 0:00:
00]} 8. e3 {[%emt 0:01:27]} Rb8 {[%emt 0:02:56]} 9. Qa4 {[%emt 0:04:00]} Bb4 {
[%emt 0:02:51]} 10. Ne5 {[%emt 0:04:18]} Nxe5 {[%emt 0:06:44]} 11. Qxb4 {
[%emt 0:00:51]} Nd3 {[%emt 0:00:56]} 12. Qxc4 {[%emt 0:01:30]} Nxc1 {[%emt 0:
00:00]} 13. Raxc1 {[%emt 0:01:01]} Bd7 {[%emt 0:00:32]} 14. b3 {[%emt 0:11:54]}
a6 {[%emt 0:01:32]} 15. Rfd1 {[%emt 0:04:11]} c6 {[%emt 0:01:36]} 16. e4 {
[%emt 0:06:25]} Rc8 {[%emt 0:03:23]} 17. Qe2 {[%emt 0:07:44]} Qe7 {[%emt 0:00:
00]} 18. e5 {[%emt 0:06:57]} Nd5 {[%emt 0:00:43]} 19. Ne4 {[%emt 0:01:05]} f6 {
[%emt 0:03:39]} 20. Nd6 {[%emt 0:03:22]} Rc7 {[%emt 0:01:59]} 21. Be4 {[%emt 0:
00:00]} fxe5 {[%emt 0:03:56]} 22. dxe5 {[%emt 0:00:37]} Bc8 {[%emt 0:01:17]}
23. h4 {[%emt 0:04:24]} g6 {[%emt 0:03:08]} 24. Qg4 {[%emt 0:03:15]} Kh8 {
[%emt 0:06:29]} 25. Kg2 {[%emt 0:07:55]} Rg8 {[%emt 0:02:50]} 26. Qg5 {[%emt 0:
00:00]} Qxg5 {[%emt 0:06:27]} 27. hxg5 {[%emt 0:00:05]} Kg7 {[%emt 0:00:43]}
28. Bxd5 {[%emt 0:00:35]} exd5 {[%emt 0:00:38]} 29. Rxd5 {[%emt 0:01:42]} Be6 {
[%emt 0:05:40]} 30. Rdd1 {[%emt 0:04:14]} Re7 {[%emt 0:02:17]} 31. f4 {[%emt 0:
00:00]} h6 {[%emt 0:01:46]} 32. gxh6+ {[%emt 0:00:42]} Kxh6 {[%emt 0:00:23]}
33. Kf2 {[%emt 0:00:50]} Kg7 {[%emt 0:00:50]} 34. Ne4 {[%emt 0:01:57]} Rh8 {
[%emt 0:01:36]} 35. Rh1 {[%emt 0:01:09]} Ree8 {[%emt 0:02:17]} 36. Nf6 {
[%emt 0:01:52]} Rd8 {[%emt 0:01:03]} 37. Ke3 {[%emt 0:04:47]} Bf5 {[%emt 0:00:
00]} 38. Rxh8 {[%emt 0:00:42]} Kxh8 {[%emt 0:00:21]} 39. Rh1+ {[%emt 0:00:49]}
Kg7 {[%emt 0:00:22]} 40. Rh7+ {[%emt 0:00:52]} Kf8 {[%emt 0:00:17]} 41. Rh8+ {
[%emt 0:32:23]} Ke7 {[%emt 0:30:19]} 42. Rxd8 {[%emt 0:00:00]} Kxd8 {[%emt 0:
00:00]} 43. Ne4 {[%emt 0:00:00]} b5 {[%emt 0:00:00]} 44. b4 {[%emt 0:00:00]}
Kc7 {[%emt 0:00:00]} 45. Kd4 {[%emt 0:00:00]} Be6 {[%emt 0:00:00]} 46. a3 {
[%emt 0:00:00]} Bf5 {[%emt 0:00:00]} 47. Nd6 {[%emt 0:00:00]} Be6 {[%emt 0:00:
00]} 48. Kc5 {[%emt 0:00:00]} Bd5 {[%emt 0:00:00]} 49. Ne8+ {[%emt 0:00:00]}
Kb7 {[%emt 0:00:00]} 50. Nf6 {[%emt 0:00:00]} Bb3 {[%emt 0:00:00]} 51. Kd6 {
[%emt 0:00:00]} Kb6 {[%emt 0:00:00]} 52. Nd7+ {[%emt 0:00:00]} Kb7 {[%emt 0:00:
00]} 53. Nc5+ {[%emt 0:00:00]} Kb6 {[%emt 0:00:00]} 54. Nxb3 {[%emt 0:00:00]}
c5 {[%emt 0:00:00]} 55. Nxc5 {[%emt 0:00:00]} a5 {[%emt 0:00:00]} 56. e6 {
[%emt 0:00:00]} a4 {[%emt 0:00:00]} 57. e7 {[%emt 0:00:00]} g5 {[%emt 0:00:00]}
58. e8=Q {[%emt 0:00:00]} g4 {[%emt 0:00:00]} 59. Qb8# {[%emt 0:00:00]} 1-0